[Event "*** Titled Tuesday Blitz"]
[Site "Chess.com"]
[Date "2020.04.28"]
[Round "3"]
[White "dlp300"]
[Black "gui_borba"]
[Result "0-1"]
[WhiteElo "2536"]
[BlackElo "2366"]
[TimeControl "180+1"]
[EndTime "10:29:19 PDT"]
[Termination "gui_borba won on time"]

1. e4 {[%clk 0:03:00.9]} 1... c6 {[%clk 0:03:00.3]} 2. f3 {[%clk 0:03:01.8]}
2... d5 {[%clk 0:03:01.2]} 3. d4 {[%clk 0:02:58.2]} 3... dxe4 {[%clk 0:02:59.8]}
4. fxe4 {[%clk 0:02:57.9]} 4... e5 {[%clk 0:03:00.7]} 5. Nf3 {[%clk 0:02:56.8]}
5... exd4 {[%clk 0:02:59]} 6. Bc4 {[%clk 0:02:56.1]} 6... Be6 {[%clk 0:02:57.2]}
7. Bxe6 {[%clk 0:02:51.1]} 7... fxe6 {[%clk 0:02:58.1]} 8. O-O {[%clk
0:02:51.1]} 8... Bc5 {[%clk 0:02:48.5]} 9. Ng5 {[%clk 0:02:39.9]} 9... Nf6
{[%clk 0:02:37.8]} 10. e5 {[%clk 0:02:39.1]} 10... d3+ {[%clk 0:02:26.2]} 11.
Kh1 {[%clk 0:02:38.1]} 11... Nd5 {[%clk 0:02:10]} 12. Nxe6 {[%clk 0:01:25.5]}
12... Qe7 {[%clk 0:02:05]} 13. Nxc5 {[%clk 0:01:19.6]} 13... Qxc5 {[%clk
0:02:05.9]} 14. cxd3 {[%clk 0:01:16.4]} 14... Nd7 {[%clk 0:02:00.8]} 15. Bg5
{[%clk 0:01:12.3]} 15... Ne3 {[%clk 0:01:47.2]} 16. Bxe3 {[%clk 0:00:53.2]}
16... Qxe3 {[%clk 0:01:48.1]} 17. Nc3 {[%clk 0:00:40.5]} 17... O-O-O {[%clk
0:01:46.5]} 18. Re1 {[%clk 0:00:40.4]} 18... Qd4 {[%clk 0:01:44.6]} 19. Re4
{[%clk 0:00:38.9]} 19... Qb6 {[%clk 0:01:36.6]} 20. Qe2 {[%clk 0:00:38.6]} 20...
Nc5 {[%clk 0:01:30.6]} 21. Re3 {[%clk 0:00:38.5]} 21... Ne6 {[%clk 0:01:31.1]}
22. Re1 {[%clk 0:00:37.1]} 22... Rhf8 {[%clk 0:01:28.6]} 23. h3 {[%clk 0:00:34]}
23... Rf4 {[%clk 0:01:20.9]} 24. Re4 {[%clk 0:00:33.1]} 24... Rdf8 {[%clk
0:01:17.3]} 25. Qd2 {[%clk 0:00:29.8]} 25... Rf1+ {[%clk 0:01:12.6]} 26. Rxf1
{[%clk 0:00:29.5]} 26... Rxf1+ {[%clk 0:01:13.5]} 27. Kh2 {[%clk 0:00:29.8]}
27... Qg1+ {[%clk 0:01:13.2]} 28. Kg3 {[%clk 0:00:30]} 28... g5 {[%clk
0:01:06.3]} 29. d4 {[%clk 0:00:24.8]} 29... Nf4 {[%clk 0:00:56.8]} 30. d5 {[%clk
0:00:22.4]} 30... cxd5 {[%clk 0:00:46.1]} 31. Rd4 {[%clk 0:00:16.7]} 31... h5
{[%clk 0:00:40.1]} 32. h4 {[%clk 0:00:16.1]} 32... Re1 {[%clk 0:00:35.1]} 33.
Nxd5 {[%clk 0:00:14.9]} 33... Ne2+ {[%clk 0:00:30.1]} 34. Kh3 {[%clk 0:00:11.6]}
34... g4+ {[%clk 0:00:29.8]} 35. Rxg4 {[%clk 0:00:11.3]} 35... hxg4+ {[%clk
0:00:30.7]} 36. Kxg4 {[%clk 0:00:12.2]} 36... Qxg2+ {[%clk 0:00:31]} 37. Kf5
{[%clk 0:00:12.6]} 37... Ng3+ {[%clk 0:00:30.7]} 0-1

[Event "*** Titled Tuesday Blitz"]
[Site "Chess.com"]
[Date "2020.04.28"]
[Round "3"]
[White "leoduarte"]
[Black "tsvet2005"]
[Result "0-1"]
[WhiteElo "2255"]
[BlackElo "2514"]
[TimeControl "180+1"]
[EndTime "10:29:19 PDT"]
[Termination "tsvet2005 won on time"]

1. e4 {[%clk 0:03:00.9]} 1... c5 {[%clk 0:02:56.3]} 2. Nf3 {[%clk 0:02:58.9]}
2... d6 {[%clk 0:02:56.3]} 3. d4 {[%clk 0:02:58.5]} 3... cxd4 {[%clk 0:02:57.2]}
4. Nxd4 {[%clk 0:02:59.2]} 4... Nf6 {[%clk 0:02:58.1]} 5. Nc3 {[%clk 0:02:59.6]}
5... a6 {[%clk 0:02:58.6]} 6. Be2 {[%clk 0:02:59.8]} 6... e5 {[%clk 0:02:58.3]}
7. Nb3 {[%clk 0:02:58]} 7... Be7 {[%clk 0:02:56.4]} 8. O-O {[%clk 0:02:55.4]}
8... O-O {[%clk 0:02:55.1]} 9. Be3 {[%clk 0:02:55.9]} 9... Be6 {[%clk
0:02:54.8]} 10. Qd3 {[%clk 0:02:38.2]} 10... Nbd7 {[%clk 0:02:50]} 11. Nd5
{[%clk 0:02:31.8]} 11... Bxd5 {[%clk 0:02:47.8]} 12. exd5 {[%clk 0:02:32.7]}
12... Ne8 {[%clk 0:02:48.3]} 13. Bg4 {[%clk 0:02:25]} 13... g6 {[%clk
0:02:41.8]} 14. Bxd7 {[%clk 0:02:24.2]} 14... Qxd7 {[%clk 0:02:39]} 15. c4
{[%clk 0:02:21]} 15... f5 {[%clk 0:02:38.8]} 16. f3 {[%clk 0:02:16.7]} 16... Rc8
{[%clk 0:02:37.4]} 17. Rac1 {[%clk 0:02:07.1]} 17... Nf6 {[%clk 0:02:28.8]} 18.
Rfd1 {[%clk 0:02:05.8]} 18... Qa4 {[%clk 0:02:00.4]} 19. c5 {[%clk 0:01:25.4]}
19... e4 {[%clk 0:01:33.2]} 20. Qd2 {[%clk 0:00:35.3]} 20... exf3 {[%clk
0:01:20.3]} 21. gxf3 {[%clk 0:00:34.7]} 21... Qxa2 {[%clk 0:01:14.6]} 22. Qb4
{[%clk 0:00:21.2]} 22... dxc5 {[%clk 0:00:56.4]} 23. Qxb7 {[%clk 0:00:20.8]}
23... Bd6 {[%clk 0:00:56.6]} 24. Nxc5 {[%clk 0:00:17.9]} 24... Rb8 {[%clk
0:00:43.4]} 25. Qc6 {[%clk 0:00:17.2]} 25... Bxh2+ {[%clk 0:00:37.5]} 26. Kh1
{[%clk 0:00:12]} 26... Qxb2 {[%clk 0:00:12.1]} 27. Qe6+ {[%clk 0:00:09.5]} 27...
Kg7 {[%clk 0:00:11.2]} 28. Bd4 {[%clk 0:00:07.8]} 28... Qa2 {[%clk 0:00:04.5]}
29. Nd7 {[%clk 0:00:07.2]} 29... Rbe8 {[%clk 0:00:01.9]} 30. Bxf6+ {[%clk
0:00:02.4]} 30... Kh6 {[%clk 0:00:02.3]} 0-1

[Event "*** Titled Tuesday Blitz"]
[Site "Chess.com"]
[Date "2020.04.28"]
[Round "3"]
[White "GMartin_Petrov"]
[Black "GeorgMeier"]
[Result "1/2-1/2"]
[WhiteElo "2677"]
[BlackElo "3015"]
[TimeControl "180+1"]
[EndTime "10:29:21 PDT"]
[Termination "Game drawn by repetition"]

1. e4 {[%clk 0:03:00.9]} 1... c5 {[%clk 0:02:56.8]} 2. Nf3 {[%clk 0:03:00.2]}
2... d6 {[%clk 0:02:54.9]} 3. d4 {[%clk 0:03:00.2]} 3... cxd4 {[%clk 0:02:55.3]}
4. Nxd4 {[%clk 0:03:01.1]} 4... Nf6 {[%clk 0:02:55.8]} 5. Nc3 {[%clk 0:03:01.6]}
5... a6 {[%clk 0:02:54]} 6. Be3 {[%clk 0:03:01.1]} 6... e6 {[%clk 0:02:48.7]} 7.
f3 {[%clk 0:02:59.6]} 7... b5 {[%clk 0:02:43]} 8. Qd2 {[%clk 0:02:58.7]} 8...
Bb7 {[%clk 0:02:41.9]} 9. g4 {[%clk 0:02:54.3]} 9... Nc6 {[%clk 0:02:39.2]} 10.
O-O-O {[%clk 0:02:44.2]} 10... Be7 {[%clk 0:02:38]} 11. g5 {[%clk 0:02:37.1]}
11... Nd7 {[%clk 0:02:37.5]} 12. h4 {[%clk 0:02:37.2]} 12... Rc8 {[%clk
0:02:33.6]} 13. Kb1 {[%clk 0:02:34.5]} 13... Nce5 {[%clk 0:02:21.3]} 14. f4
{[%clk 0:02:17]} 14... Nc4 {[%clk 0:02:17.4]} 15. Bxc4 {[%clk 0:02:15.9]} 15...
Rxc4 {[%clk 0:02:18.3]} 16. a3 {[%clk 0:01:55.5]} 16... Nc5 {[%clk 0:02:10.1]}
17. b3 {[%clk 0:01:31.8]} 17... Rxc3 {[%clk 0:02:07.1]} 18. Qxc3 {[%clk
0:01:32.7]} 18... Nxe4 {[%clk 0:02:05.4]} 19. Qe1 {[%clk 0:01:07.8]} 19... Qc7
{[%clk 0:01:52.5]} 20. Kb2 {[%clk 0:01:04.8]} 20... O-O {[%clk 0:01:22.1]} 21.
h5 {[%clk 0:01:03.2]} 21... Rc8 {[%clk 0:01:12.9]} 22. Rh2 {[%clk 0:01:01.3]}
22... e5 {[%clk 0:00:19.8]} 23. Nf5 {[%clk 0:00:51.3]} 23... Bf8 {[%clk
0:00:19.9]} 24. g6 {[%clk 0:00:43.3]} 24... fxg6 {[%clk 0:00:19.8]} 25. hxg6
{[%clk 0:00:43.4]} 25... hxg6 {[%clk 0:00:20.7]} 26. Nh4 {[%clk 0:00:36.3]}
26... exf4 {[%clk 0:00:14.2]} 27. Bd4 {[%clk 0:00:15.8]} 27... Qf7 {[%clk
0:00:12]} 28. Nf3 {[%clk 0:00:15.9]} 28... g5 {[%clk 0:00:11.7]} 29. Qh1 {[%clk
0:00:14.6]} 29... Qf5 {[%clk 0:00:07]} 30. Rh8+ {[%clk 0:00:13.5]} 30... Kf7
{[%clk 0:00:07.4]} 31. Qh5+ {[%clk 0:00:13.2]} 31... Qg6 {[%clk 0:00:06.3]} 32.
Qg4 {[%clk 0:00:13.2]} 32... Re8 {[%clk 0:00:04.6]} 33. Qd7+ {[%clk 0:00:11.1]}
33... Re7 {[%clk 0:00:04.2]} 34. Qd8 {[%clk 0:00:11.5]} 34... Re8 {[%clk
0:00:04.6]} 35. Qd7+ {[%clk 0:00:11.9]} 35... Re7 {[%clk 0:00:05]} 36. Qd8
{[%clk 0:00:11.4]} 36... Re8 {[%clk 0:00:04.5]} 37. Qd7+ {[%clk 0:00:10.1]}
1/2-1/2

[Event "*** Titled Tuesday Blitz"]
[Site "Chess.com"]
[Date "2020.04.28"]
[Round "3"]
[White "JosefineHeinemann"]
[Black "Playgood28"]
[Result "1-0"]
[WhiteElo "2428"]
[BlackElo "2226"]
[TimeControl "180+1"]
[EndTime "10:29:21 PDT"]
[Termination "JosefineHeinemann won on time"]

1. e4 {[%clk 0:03:00.9]} 1... e5 {[%clk 0:02:58.3]} 2. Nf3 {[%clk 0:02:55.3]}
2... d6 {[%clk 0:02:58.7]} 3. d4 {[%clk 0:02:53.4]} 3... exd4 {[%clk 0:02:58.5]}
4. Nxd4 {[%clk 0:02:54.3]} 4... Nf6 {[%clk 0:02:57.9]} 5. Nc3 {[%clk 0:02:47.4]}
5... Be7 {[%clk 0:02:57.8]} 6. g3 {[%clk 0:02:40]} 6... d5 {[%clk 0:02:57]} 7.
e5 {[%clk 0:02:27.9]} 7... Ng4 {[%clk 0:02:55.7]} 8. Bg2 {[%clk 0:02:28.1]} 8...
Nxe5 {[%clk 0:02:53.7]} 9. Qe2 {[%clk 0:02:17]} 9... Nec6 {[%clk 0:02:49]} 10.
Be3 {[%clk 0:02:03.4]} 10... O-O {[%clk 0:02:44.6]} 11. Nxd5 {[%clk 0:01:54.3]}
11... Bd6 {[%clk 0:02:05.2]} 12. O-O {[%clk 0:01:45.5]} 12... Nxd4 {[%clk
0:02:04.7]} 13. Bxd4 {[%clk 0:01:45.1]} 13... Nc6 {[%clk 0:02:04.5]} 14. Bc3
{[%clk 0:01:44.1]} 14... Re8 {[%clk 0:02:01.4]} 15. Qd2 {[%clk 0:01:40.6]} 15...
Be6 {[%clk 0:01:46.5]} 16. Rad1 {[%clk 0:01:39.6]} 16... Rb8 {[%clk 0:01:18.6]}
17. Rfe1 {[%clk 0:01:27.8]} 17... Bxd5 {[%clk 0:01:18]} 18. Bxd5 {[%clk
0:01:26.2]} 18... Rxe1+ {[%clk 0:01:15.6]} 19. Rxe1 {[%clk 0:01:26.4]} 19... Qd7
{[%clk 0:01:08.6]} 20. Qg5 {[%clk 0:01:24.3]} 20... Bf8 {[%clk 0:01:07.1]} 21.
h4 {[%clk 0:01:05]} 21... Re8 {[%clk 0:01:05.2]} 22. Rd1 {[%clk 0:00:59.5]}
22... h6 {[%clk 0:00:38.9]} 23. Qf4 {[%clk 0:00:53.2]} 23... Bd6 {[%clk
0:00:34.3]} 24. Qd2 {[%clk 0:00:48.8]} 24... Ne5 {[%clk 0:00:28.8]} 25. Bg2
{[%clk 0:00:46.1]} 25... Qf5 {[%clk 0:00:26.4]} 26. Qd5 {[%clk 0:00:43.8]} 26...
Qg4 {[%clk 0:00:21.3]} 27. Qxb7 {[%clk 0:00:40.5]} 27... Qxd1+ {[%clk
0:00:19.7]} 28. Kh2 {[%clk 0:00:39.8]} 28... Qg4 {[%clk 0:00:18.6]} 29. Qb5
{[%clk 0:00:38]} 29... Nf3+ {[%clk 0:00:17.6]} 30. Bxf3 {[%clk 0:00:37.8]} 30...
Qxf3 {[%clk 0:00:15.2]} 31. Qxe8+ {[%clk 0:00:37.7]} 31... Kh7 {[%clk
0:00:15.6]} 32. Qe1 {[%clk 0:00:37.7]} 32... g5 {[%clk 0:00:12.8]} 33. hxg5
{[%clk 0:00:36.5]} 33... hxg5 {[%clk 0:00:11.1]} 34. Qd2 {[%clk 0:00:37.1]}
34... g4 {[%clk 0:00:09]} 35. Qd3+ {[%clk 0:00:36.8]} 35... Kg8 {[%clk
0:00:07.1]} 36. Qxf3 {[%clk 0:00:35.3]} 36... gxf3 {[%clk 0:00:07.1]} 37. Kh3
{[%clk 0:00:36]} 37... f5 {[%clk 0:00:06.8]} 38. Bd4 {[%clk 0:00:36.3]} 38...
Kf7 {[%clk 0:00:06.5]} 39. Kh4 {[%clk 0:00:36.7]} 39... a6 {[%clk 0:00:04.9]}
40. Kg5 {[%clk 0:00:36.3]} 40... Ke6 {[%clk 0:00:04.9]} 41. g4 {[%clk
0:00:36.5]} 41... fxg4 {[%clk 0:00:02.7]} 42. Kxg4 {[%clk 0:00:37.4]} 42... Kd5
{[%clk 0:00:01.5]} 43. Be3 {[%clk 0:00:37.6]} 43... Ke4 {[%clk 0:00:01.6]} 44.
b3 {[%clk 0:00:36.3]} 44... c6 {[%clk 0:00:01.3]} 45. a4 {[%clk 0:00:35.9]} 1-0

[Event "*** Titled Tuesday Blitz"]
[Site "Chess.com"]
[Date "2020.04.28"]
[Round "3"]
[White "LionTheLeon_06"]
[Black "sergoy"]
[Result "1-0"]
[WhiteElo "2651"]
[BlackElo "2856"]
[TimeControl "180+1"]
[EndTime "10:29:22 PDT"]
[Termination "LionTheLeon_06 won by resignation"]

1. Nf3 {[%clk 0:03:00.9]} 1... Nf6 {[%clk 0:02:59.9]} 2. g3 {[%clk 0:03:00.1]}
2... d5 {[%clk 0:03:00.2]} 3. Bg2 {[%clk 0:03:00.2]} 3... Bf5 {[%clk 0:03:00.9]}
4. d3 {[%clk 0:03:00.2]} 4... e6 {[%clk 0:03:01.3]} 5. O-O {[%clk 0:03:00]} 5...
h6 {[%clk 0:03:01.9]} 6. c4 {[%clk 0:02:58.8]} 6... c6 {[%clk 0:03:02.1]} 7.
cxd5 {[%clk 0:02:57.3]} 7... exd5 {[%clk 0:03:02.2]} 8. Nc3 {[%clk 0:02:56.4]}
8... d4 {[%clk 0:03:01.1]} 9. e4 {[%clk 0:02:52.2]} 9... dxe3 {[%clk 0:02:54.6]}
10. Bxe3 {[%clk 0:02:52.1]} 10... Be7 {[%clk 0:02:54.6]} 11. Nd4 {[%clk
0:02:46.1]} 11... Bg6 {[%clk 0:02:51.2]} 12. Qb3 {[%clk 0:02:45.2]} 12... Qd7
{[%clk 0:02:43.2]} 13. Nf3 {[%clk 0:02:25.9]} 13... Bd6 {[%clk 0:02:39.9]} 14.
d4 {[%clk 0:02:21.7]} 14... O-O {[%clk 0:02:34.6]} 15. Ne5 {[%clk 0:02:21.4]}
15... Bxe5 {[%clk 0:02:31.5]} 16. dxe5 {[%clk 0:02:21.5]} 16... Ng4 {[%clk
0:02:21.3]} 17. Bc5 {[%clk 0:02:10.5]} 17... Re8 {[%clk 0:02:19.3]} 18. Rad1
{[%clk 0:02:06.8]} 18... Qc8 {[%clk 0:02:19.1]} 19. f4 {[%clk 0:02:00.2]} 19...
Na6 {[%clk 0:02:16]} 20. Bd4 {[%clk 0:01:53.1]} 20... h5 {[%clk 0:02:14.6]} 21.
h3 {[%clk 0:01:51.6]} 21... Nh6 {[%clk 0:02:13.6]} 22. Bf2 {[%clk 0:01:48.7]}
22... Bf5 {[%clk 0:02:01.4]} 23. Kh2 {[%clk 0:01:44.4]} 23... Nc7 {[%clk
0:01:58]} 24. Rd2 {[%clk 0:01:34.9]} 24... Ne6 {[%clk 0:01:33]} 25. Qd1 {[%clk
0:01:19.5]} 25... Bg6 {[%clk 0:01:29.1]} 26. Ne4 {[%clk 0:01:13.6]} 26... Bxe4
{[%clk 0:01:28.8]} 27. Bxe4 {[%clk 0:01:13.6]} 27... h4 {[%clk 0:01:29.3]} 28.
Qh5 {[%clk 0:01:04.5]} 28... hxg3+ {[%clk 0:01:28.8]} 29. Bxg3 {[%clk
0:01:05.4]} 29... Nc5 {[%clk 0:01:28.2]} 30. Bc2 {[%clk 0:00:59.8]} 30... Qe6
{[%clk 0:01:23.5]} 31. f5 {[%clk 0:00:51.2]} 31... Qc4 {[%clk 0:01:21]} 32. Rf4
{[%clk 0:00:37.3]} 32... Qb5 {[%clk 0:01:15.2]} 33. f6 {[%clk 0:00:33.9]} 33...
Rad8 {[%clk 0:00:09.6]} 34. Rdf2 {[%clk 0:00:33.6]} 34... Ne6 {[%clk 0:00:09.8]}
35. Rg4 {[%clk 0:00:21.1]} 35... Qc5 {[%clk 0:00:04.4]} 36. Rxg7+ {[%clk
0:00:15.7]} 36... Nxg7 {[%clk 0:00:03.6]} 37. Qxh6 {[%clk 0:00:16]} 1-0

[Event "*** Titled Tuesday Blitz"]
[Site "Chess.com"]
[Date "2020.04.28"]
[Round "3"]
[White "Firehand33"]
[Black "SoltaniciR"]
[Result "0-1"]
[WhiteElo "2729"]
[BlackElo "2583"]
[TimeControl "180+1"]
[EndTime "10:29:22 PDT"]
[Termination "SoltaniciR won by checkmate"]

1. g3 {[%clk 0:03:00.9]} 1... c5 {[%clk 0:02:58.1]} 2. Bg2 {[%clk 0:03:01.8]}
2... Nc6 {[%clk 0:02:57.7]} 3. c4 {[%clk 0:03:01.7]} 3... g6 {[%clk 0:02:57.8]}
4. Nc3 {[%clk 0:03:02.4]} 4... Bg7 {[%clk 0:02:58]} 5. b3 {[%clk 0:03:03.1]}
5... e6 {[%clk 0:02:50.2]} 6. Bb2 {[%clk 0:03:00.4]} 6... Nge7 {[%clk
0:02:49.5]} 7. e3 {[%clk 0:03:00.4]} 7... d5 {[%clk 0:02:45.2]} 8. Nge2 {[%clk
0:03:00]} 8... O-O {[%clk 0:02:27.5]} 9. O-O {[%clk 0:02:54.6]} 9... d4 {[%clk
0:02:21.4]} 10. Na4 {[%clk 0:02:49]} 10... b6 {[%clk 0:01:47.6]} 11. exd4 {[%clk
0:02:44.5]} 11... cxd4 {[%clk 0:01:46.4]} 12. d3 {[%clk 0:02:38.3]} 12... Rb8
{[%clk 0:01:45.5]} 13. a3 {[%clk 0:02:29.8]} 13... a5 {[%clk 0:01:40.9]} 14. Bc1
{[%clk 0:02:00.4]} 14... b5 {[%clk 0:01:20.9]} 15. Nc5 {[%clk 0:01:50.8]} 15...
Qb6 {[%clk 0:01:02.9]} 16. Ne4 {[%clk 0:01:50.5]} 16... bxc4 {[%clk 0:00:55]}
17. bxc4 {[%clk 0:01:50.3]} 17... e5 {[%clk 0:00:50.6]} 18. Nd6 {[%clk
0:01:46.7]} 18... Be6 {[%clk 0:00:45]} 19. Nb5 {[%clk 0:01:43.2]} 19... f5
{[%clk 0:00:34.7]} 20. Bd2 {[%clk 0:01:34.5]} 20... e4 {[%clk 0:00:34.5]} 21.
Nf4 {[%clk 0:01:30.7]} 21... Bf7 {[%clk 0:00:33.6]} 22. Qe2 {[%clk 0:01:17.7]}
22... Ne5 {[%clk 0:00:32.8]} 23. Rfc1 {[%clk 0:01:07.4]} 23... Kh8 {[%clk
0:00:24.1]} 24. dxe4 {[%clk 0:01:05.8]} 24... d3 {[%clk 0:00:21.6]} 25. Nxd3
{[%clk 0:00:58.6]} 25... Bxc4 {[%clk 0:00:21.4]} 26. Rxc4 {[%clk 0:00:47.4]}
26... Nxc4 {[%clk 0:00:22.3]} 27. Rb1 {[%clk 0:00:43.9]} 27... fxe4 {[%clk
0:00:18.8]} 28. Bxe4 {[%clk 0:00:43]} 28... Nxd2 {[%clk 0:00:16.4]} 29. Qxd2
{[%clk 0:00:43.1]} 29... Rbd8 {[%clk 0:00:14.6]} 30. Qe1 {[%clk 0:00:36.2]}
30... Nf5 {[%clk 0:00:13.4]} 31. Bxf5 {[%clk 0:00:23.8]} 31... Rxf5 {[%clk
0:00:12.9]} 32. Nc3 {[%clk 0:00:14.1]} 32... Qd4 {[%clk 0:00:11.8]} 33. Nf4
{[%clk 0:00:08.7]} 33... Qxc3 {[%clk 0:00:11]} 34. Qe7 {[%clk 0:00:09.3]} 34...
Qf6 {[%clk 0:00:10.3]} 35. Qa7 {[%clk 0:00:08.7]} 35... Rxf4 {[%clk 0:00:08.4]}
36. gxf4 {[%clk 0:00:08.4]} 36... Qxf4 {[%clk 0:00:08.8]} 37. Rb7 {[%clk
0:00:08.4]} 37... Rd1+ {[%clk 0:00:08.4]} 38. Kg2 {[%clk 0:00:08.9]} 38... Qg4#
{[%clk 0:00:08.6]} 0-1

[Event "*** Titled Tuesday Blitz"]
[Site "Chess.com"]
[Date "2020.04.28"]
[Round "3"]
[White "ChessWarrior7197"]
[Black "InitiatingASC"]
[Result "1-0"]
[WhiteElo "2851"]
[BlackElo "2461"]
[TimeControl "180+1"]
[EndTime "10:29:22 PDT"]
[Termination "ChessWarrior7197 won by resignation"]

1. c4 {[%clk 0:03:00.9]} 1... e6 {[%clk 0:02:58.7]} 2. d4 {[%clk 0:02:59]} 2...
d5 {[%clk 0:02:56.1]} 3. Nc3 {[%clk 0:02:59]} 3... c5 {[%clk 0:02:55.6]} 4. cxd5
{[%clk 0:02:57.5]} 4... exd5 {[%clk 0:02:56.5]} 5. Nf3 {[%clk 0:02:57.8]} 5...
Nc6 {[%clk 0:02:56.9]} 6. g3 {[%clk 0:02:57.8]} 6... Nf6 {[%clk 0:02:57.1]} 7.
Bg2 {[%clk 0:02:57.9]} 7... Be7 {[%clk 0:02:57.5]} 8. O-O {[%clk 0:02:57.7]}
8... O-O {[%clk 0:02:58]} 9. b3 {[%clk 0:02:58]} 9... Be6 {[%clk 0:02:48.9]} 10.
Bb2 {[%clk 0:02:57.1]} 10... Ne4 {[%clk 0:02:42.1]} 11. dxc5 {[%clk 0:02:52.5]}
11... Bxc5 {[%clk 0:02:39.6]} 12. Rc1 {[%clk 0:02:50.3]} 12... Be7 {[%clk
0:02:34.9]} 13. Nb5 {[%clk 0:02:46.7]} 13... Qa5 {[%clk 0:02:27]} 14. a4 {[%clk
0:02:32.1]} 14... Rad8 {[%clk 0:02:20.6]} 15. Nbd4 {[%clk 0:02:30.4]} 15... Qa6
{[%clk 0:02:02.8]} 16. Nxc6 {[%clk 0:02:21]} 16... bxc6 {[%clk 0:02:02.1]} 17.
Nd4 {[%clk 0:02:21.9]} 17... Bd7 {[%clk 0:01:56.3]} 18. Nf3 {[%clk 0:02:00.1]}
18... Bf6 {[%clk 0:01:52.1]} 19. Bxf6 {[%clk 0:01:59.1]} 19... Nxf6 {[%clk
0:01:51.3]} 20. e3 {[%clk 0:01:56.4]} 20... Rb8 {[%clk 0:01:48.3]} 21. Nd4
{[%clk 0:01:53.1]} 21... Rfc8 {[%clk 0:01:45.2]} 22. Rc5 {[%clk 0:01:51.1]}
22... Rb6 {[%clk 0:01:27.2]} 23. Qc2 {[%clk 0:01:48]} 23... Qb7 {[%clk
0:01:17.3]} 24. Rc1 {[%clk 0:01:47.3]} 24... h6 {[%clk 0:00:54.5]} 25. h3 {[%clk
0:01:45.8]} 25... Ne4 {[%clk 0:00:52.4]} 26. Bxe4 {[%clk 0:01:44.5]} 26... dxe4
{[%clk 0:00:52.3]} 27. Kh2 {[%clk 0:01:42]} 27... Re8 {[%clk 0:00:51.3]} 28. Qe2
{[%clk 0:01:30.5]} 28... Rb4 {[%clk 0:00:47.7]} 29. R1c3 {[%clk 0:01:28]} 29...
Be6 {[%clk 0:00:44.8]} 30. Rxc6 {[%clk 0:01:17.6]} 30... Bxb3 {[%clk 0:00:43.3]}
31. Rc7 {[%clk 0:01:17.8]} 31... Qb6 {[%clk 0:00:35.4]} 32. Qh5 {[%clk
0:01:03.4]} 32... Ba2 {[%clk 0:00:30.7]} 33. Rc8 {[%clk 0:01:02.1]} 33... Rxc8
{[%clk 0:00:23.2]} 34. Rxc8+ {[%clk 0:01:03]} 34... Kh7 {[%clk 0:00:23.6]} 35.
Qf5+ {[%clk 0:00:59.3]} 35... Qg6 {[%clk 0:00:23.4]} 36. Qf4 {[%clk 0:00:56.4]}
36... Rxa4 {[%clk 0:00:22.1]} 37. h4 {[%clk 0:00:51.6]} 37... Be6 {[%clk
0:00:21.8]} 38. Rc6 {[%clk 0:00:45.6]} 38... Qg4 {[%clk 0:00:21.5]} 39. Nxe6
{[%clk 0:00:45.2]} 39... Qxf4 {[%clk 0:00:18.2]} 40. Nxf4 {[%clk 0:00:46.1]}
40... Ra2 {[%clk 0:00:18.4]} 41. Kg2 {[%clk 0:00:45.5]} 41... a5 {[%clk
0:00:19.3]} 42. Ra6 {[%clk 0:00:45.2]} 42... a4 {[%clk 0:00:19.5]} 43. Nd5
{[%clk 0:00:45.7]} 43... a3 {[%clk 0:00:18.9]} 44. Nc3 {[%clk 0:00:45.8]} 44...
Rc2 {[%clk 0:00:18.5]} 45. Rxa3 {[%clk 0:00:45.2]} 45... f5 {[%clk 0:00:19]} 46.
Nb5 {[%clk 0:00:45.5]} 46... g6 {[%clk 0:00:17.4]} 47. Nd4 {[%clk 0:00:45.7]}
47... Rc7 {[%clk 0:00:17.3]} 48. h5 {[%clk 0:00:46]} 48... Rd7 {[%clk
0:00:15.6]} 49. hxg6+ {[%clk 0:00:45.2]} 49... Kxg6 {[%clk 0:00:16.2]} 50. Ra6+
{[%clk 0:00:46.1]} 50... Kg5 {[%clk 0:00:16]} 51. Ne6+ {[%clk 0:00:46.1]} 51...
Kf6 {[%clk 0:00:15.3]} 52. Nf8+ {[%clk 0:00:46]} 1-0

[Event "*** Titled Tuesday Blitz"]
[Site "Chess.com"]
[Date "2020.04.28"]
[Round "3"]
[White "NemtsevIgor"]
[Black "Gandrade2"]
[Result "1-0"]
[WhiteElo "2359"]
[BlackElo "1979"]
[TimeControl "180+1"]
[EndTime "10:29:23 PDT"]
[Termination "NemtsevIgor won on time"]

1. d4 {[%clk 0:03:00.9]} 1... d5 {[%clk 0:02:59.4]} 2. Bf4 {[%clk 0:03:00.6]}
2... Nf6 {[%clk 0:02:59.1]} 3. e3 {[%clk 0:03:00.5]} 3... c5 {[%clk 0:02:59.6]}
4. c3 {[%clk 0:03:00.2]} 4... Nc6 {[%clk 0:03:00]} 5. Nd2 {[%clk 0:03:00.1]}
5... Bf5 {[%clk 0:02:57.6]} 6. Qb3 {[%clk 0:02:58.5]} 6... Qd7 {[%clk
0:02:57.6]} 7. Ngf3 {[%clk 0:02:57.8]} 7... c4 {[%clk 0:02:56.9]} 8. Qd1 {[%clk
0:02:49.9]} 8... e6 {[%clk 0:02:54.6]} 9. Nh4 {[%clk 0:02:45]} 9... Bg6 {[%clk
0:02:38.6]} 10. Nxg6 {[%clk 0:02:44.4]} 10... hxg6 {[%clk 0:02:39.5]} 11. e4
{[%clk 0:02:38.8]} 11... Be7 {[%clk 0:02:29.2]} 12. Be2 {[%clk 0:02:35.9]} 12...
Rc8 {[%clk 0:02:03.6]} 13. Bf3 {[%clk 0:02:28.7]} 13... O-O {[%clk 0:02:01.8]}
14. e5 {[%clk 0:02:27.6]} 14... Ne8 {[%clk 0:01:53.6]} 15. h4 {[%clk 0:02:21.1]}
15... f6 {[%clk 0:01:45.6]} 16. exf6 {[%clk 0:02:17.6]} 16... Bxf6 {[%clk
0:01:38.6]} 17. Bg5 {[%clk 0:01:59.7]} 17... e5 {[%clk 0:01:36.1]} 18. Bg4
{[%clk 0:01:46.3]} 18... Qc7 {[%clk 0:01:22.9]} 19. Bxc8 {[%clk 0:01:46.2]}
19... Qxc8 {[%clk 0:01:23.3]} 20. Bxf6 {[%clk 0:01:40.2]} 20... Rxf6 {[%clk
0:01:21.2]} 21. dxe5 {[%clk 0:01:30.5]} 21... Nxe5 {[%clk 0:01:17.9]} 22. O-O
{[%clk 0:01:27.8]} 22... Nd3 {[%clk 0:01:14.4]} 23. Nf3 {[%clk 0:01:23.9]} 23...
Qg4 {[%clk 0:01:08.9]} 24. b3 {[%clk 0:01:15.8]} 24... Nd6 {[%clk 0:01:07.8]}
25. Rb1 {[%clk 0:01:11.3]} 25... b6 {[%clk 0:01:01.6]} 26. bxc4 {[%clk
0:01:06.4]} 26... dxc4 {[%clk 0:01:02.5]} 27. a4 {[%clk 0:01:02.1]} 27... Ne4
{[%clk 0:00:59.2]} 28. Qe2 {[%clk 0:00:50.8]} 28... Nxc3 {[%clk 0:00:54.5]} 29.
Qe8+ {[%clk 0:00:50.4]} 29... Rf8 {[%clk 0:00:50.3]} 30. Qc6 {[%clk 0:00:41.5]}
30... Nxb1 {[%clk 0:00:42.6]} 31. Rxb1 {[%clk 0:00:41]} 31... Nf4 {[%clk
0:00:38.3]} 32. Qxc4+ {[%clk 0:00:38.9]} 32... Kh7 {[%clk 0:00:37.5]} 33. Ng5+
{[%clk 0:00:35.9]} 33... Kh6 {[%clk 0:00:34.3]} 34. Qe4 {[%clk 0:00:32.8]} 34...
Nh3+ {[%clk 0:00:16.9]} 35. Kh2 {[%clk 0:00:31.3]} 35... Qxe4 {[%clk 0:00:16.7]}
36. Nxe4 {[%clk 0:00:31]} 36... Nf4 {[%clk 0:00:15]} 37. f3 {[%clk 0:00:29.2]}
37... Rf7 {[%clk 0:00:10.9]} 38. Rc1 {[%clk 0:00:28]} 38... Nd3 {[%clk
0:00:08.6]} 39. Rc6 {[%clk 0:00:26.9]} 39... Nf4 {[%clk 0:00:03.6]} 40. Ng5
{[%clk 0:00:26.3]} 40... Rf6 {[%clk 0:00:03]} 41. Rc8 {[%clk 0:00:26.2]} 1-0